Cogmind - Beta 9 *** ADVENTURER MODE // 2019.10.24 @ 19:42:41 Player: Scandroid Result: Self-destructed Performance ------------- Evolutions (0) 0 Regions Visited (4) 800 Robots Destroyed (16) 80 Value Destroyed (339) 339 Prototype IDs (22) 440 Alien Tech Used (0) 0 Bonus (300) 300 TOTAL SCORE: 1959 Bonus ------- Aligned with FarCom 300 Cogmind --------- Core Integrity 140/250 Matter 290/300 Energy 250/250 System Corruption 1% Temperature Cool (0) Location -9/Mines Parts ------- Power (1) Ion Engine Propulsion (2) Improved Aluminum Leg Improved Aluminum Leg Utility (2) Lightpack 2.0 Weapon (2) Assault Rifle Datajack Inventory (24) Improved Heat Sink Medium Matter Pod (100) Experimental Sensor Array Signal Interpreter Signal Interpreter Targeting Computer Tractor Beam Trap Reconfigurator Supersonic Drone Bay (0/1) Assault Rifle Light Assault Rifle Light Assault Rifle Rocket Launcher Stasis Trap (100%) Stasis Trap (100%) Peak State ------------ Power Ion Engine Propulsion Improved Aluminum Leg Improved Aluminum Leg Utility Lightpack 2.0 Weapon Assault Rifle Light Assault Rifle Inventory Improved Heat Sink Medium Matter Pod Experimental Sensor Array Signal Interpreter Signal Interpreter Targeting Computer Tractor Beam Trap Reconfigurator Supersonic Drone Bay Assault Rifle Light Assault Rifle Rocket Launcher Datajack Stasis Trap Stasis Trap [Rating: 31] Favorites ----------- Power Ion Engine Engine Ion Engine Propulsion Improved Aluminum Leg Treads Light Treads Leg Improved Aluminum Leg Hover Unit Backup Propulsion I Utility Lightpack 2.0 Device Supersonic Drone Bay Storage Lightpack 2.0 Weapon Light Assault Rifle Energy Gun Medium Laser Ballistic Gun Light Assault Rifle Special Melee Weapon Datajack Build | -11 -10 -10 -10 -9 ------- Run | Scr Mat Min Exi Min Slots Evolved . | . . . . . Power . | . . . . . Propulsion . | . . . . . Utility . | . . . . . Weapon . | . . . . . Parts Attached 23 | 7 10 1 4 1 Power 3 | 1 . 1 1 . Engine 3 | 1 . 1 1 . Core . | . . . . . Reactor . | . . . . . Propulsion 7 | 2 5 . . . Treads 4 | 2 2 . . . Leg 3 | . 3 . . . Wheel . | . . . . . Hover . | . . . . . Flight . | . . . . . Utility 7 | 1 3 . 3 . Device 2 | . . . 2 . Storage 5 | 1 3 . 1 . Processor . | . . . . . Hackware . | . . . . . Protection . | . . . . . Artifact . | . . . . . Weapon 6 | 3 2 . . 1 Energy Gun 3 | 2 1 . . . Energy Cannon . | . . . . . Ballistic Gun 2 | 1 1 . . . Ballistic Cannon . | . . . . . Launcher . | . . . . . Special Weapon . | . . . . . Impact Weapon . | . . . . . Slashing Weapon . | . . . . . Piercing Weapon . | . . . . . Special Melee Weapon 1 | . . . . 1 Unidentified Prototypes 2 | . . . 2 . Parts Lost 2 | . 1 1 . . Power 1 | . . 1 . . Propulsion . | . . . . . Utility . | . . . . . Weapon 1 | . 1 . . . Highest Loss Streak 1 | . 1 1 . . Average Slot Usage (%) 89 | . 84 99 89 85 Engine 13 | . 14 13 14 14 Treads 3 | . 14 . . . Leg 24 | . 12 28 28 28 Storage 18 | . 15 28 17 14 Energy Gun 2 | . 10 . . . Ballistic Gun 25 | . 17 28 28 27 Naked Turns . | . . . . . Heaviest Build 32 | 12 32 26 26 13 Greatest Support 40 | 40 40 26 26 26 Greatest Overweight (x) 4 | . 4 . . . Average Overweight (x) . | . . . . . Largest Inventory Capacity 24 | 6 14 10 24 24 Average Capacity 15 | 5 8 10 19 24 Most Carried 16 | 4 10 10 13 16 Average Carried 9 | 1 5 9 10 14 Final Capacity 24 | . . . . 24 Final Carried 15 | . . . . 15 Class Distribution -------------------- 54% | Mutant 45% | Hauler-Mutant Dominant Class ---------------- Mutant | -10/Materials Mutant | -10/Mines Hauler-Mutant | -10/Exiles Hauler-Mutant | -9/Mines Resources | -11 -10 -10 -10 -9 ----------- Run | Scr Mat Min Exi Min Matter Collected 688 | 220 100 298 70 . Remotely . | . . . . . Salvage Created 412 | . 86 326 . . Parts 41 | . 12 29 . . Haulers Intercepted . | . . . . . Recyclers Shooed . | . . . . . Parts Field Recycled . | . . . . . Retrieved Matter . | . . . . . Parts Self-Destructed . | . . . . . Prevented . | . . . . . Kills | -11 -10 -10 -10 -9 ------- Run | Scr Mat Min Exi Min Combat Hostiles Destroyed 13 | . 3 10 . . Guns 13 | . 3 10 . . Classes Destroyed 4 | . 3 1 . . Builder 2 | . 1 1 . . Watcher 1 | . 1 . . . Swarmer 7 | . 3 4 . . Grunt 6 | . . 6 . . Best Kill Streak 3 | . 3 3 . . Combat Bots Only 3 | . 3 3 . . Max Kills in Single Turn 2 | . 1 2 . . Gunslinging . | . . . . . Exploded . | . . . . . Melee . | . . . . . Uniques/NPCs Destroyed . | . . . . . Combat | -11 -10 -10 -10 -9 -------- Run | Scr Mat Min Exi Min Damage Taken 618 | . 236 368 . 14 Core 110 | . 58 52 . . Absorbed by Shields . | . . . . . Core Remaining (%) 100 | 100 . . . . Volleys Fired 43 | . 14 29 . . Largest 2 | . 2 2 . . Hottest 70 | . 70 40 . . Shots Fired 86 | . 28 58 . . Gun 86 | . 28 58 . . Cannon . | . . . . . Launcher . | . . . . . Special . | . . . . . Kinetic 78 | . 20 58 . . Thermal 8 | . 8 . . . Explosive . | . . . . . Electromagnetic . | . . . . . Robot Hit Streak 14 | . 4 14 . . Robot Miss Streak 2 | . 1 2 . . Penetration Max . | . . . . . Secondary Targets 2 | . 1 1 . . Max Gunslinging Chain 1 | . 1 1 . . Shots Hit Robots 65 | . 19 46 . . Core Hits 27 | . 6 21 . . Critical Hits 1 | . . 1 . . Critical Kills 1 | . . 1 . . Critical Parts Destroyed . | . . . . . Melee Attacks 22 | . . . . 22 Impact . | . . . . . Slashing . | . . . . . Piercing . | . . . . . Sneak Attacks . | . . . . . Combat Hostiles . | . . . . . Follow-up Attacks . | . . . . . Damage Inflicted 626 | . 187 418 . 21 Guns 605 | . 187 418 . . Cannons . | . . . . . Explosions . | . . . . . Melee . | . . . . . Ramming 21 | . . . . 21 Kinetic 519 | . 101 418 . . Thermal 86 | . 86 . . . Explosive . | . . . . . Electromagnetic . | . . . . . Impact . | . . . . . Slashing . | . . . . . Piercing . | . . . . . Highest Corruption 1 | . 1 1 1 1 Average Corruption 1 | . 1 1 1 1 Corruption Purged . | . . . . . Effects 10 | . 1 . 5 4 Message Errors 6 | . 1 . 3 2 Energy Discharges 1 | . . . . 1 Data Loss (minor) 3 | . . . 2 1 Overload Shots . | . . . . . Overflow Damage . | . . . . . Projectiles . | . . . . . Explosions . | . . . . . Melee . | . . . . . Knockbacks . | . . . . . Impact . | . . . . . Kinetic . | . . . . . Secondary . | . . . . . Self-Inflicted Damage 5 | . . . . 5 Shots . | . . . . . Rammed 1 | . . . . 1 Targets Rammed 2 | . . . . 2 Kicked 1 | . . . . 1 Crushed . | . . . . . Highest Temperature 80 | . 80 15 . . Average Temperature 23 | . 32 6 . . Received Heat Transfer 144 | . . 138 . 6 Siege Activations . | . . . . . Robots Corrupted . | . . . . . Combat Hostiles . | . . . . . Parts Fried . | . . . . . Impact Corruptions . | . . . . . Robots Melted . | . . . . . Combat Hostiles . | . . . . . Parts Melted . | . . . . . Heat Transferred 259 | . 259 . . . Parts Sabotaged . | . . . . . Parts Stolen . | . . . . . Parts Stripped . | . . . . . Power Chain Reactions . | . . . . . Missiles Intercepted . | . . . . . Alert | -11 -10 -10 -10 -9 ------- Run | Scr Mat Min Exi Min Peak Influence 120 | . 75 120 . . Average Influence 23 | . 24 50 . . Maximum Alert Level . | . . . . . Low Security (%) 100 | . . . . . Level 1 . | . . . . . Level 2 . | . . . . . Level 3 . | . . . . . Level 4 . | . . . . . Level 5 . | . . . . . High Security . | . . . . . Max Security . | . . . . . Squads Dispatched 1 | . 1 . . . Investigation 1 | . 1 . . . Extermination . | . . . . . Reinforcement . | . . . . . Assault . | . . . . . Garrison . | . . . . . Intercept . | . . . . . Construction Impeded . | . . . . . Haulers Reinforced . | . . . . . Stealth | -11 -10 -10 -10 -9 --------- Run | Scr Mat Min Exi Min Distress Signals 1 | . 1 . . . Communications Jammed . | . . . . . Distress Signals . | . . . . . Times Spotted 22 | . 10 10 . 2 Peak Tracking Total 4 | . 4 3 . 2 Tactical Retreats 2 | . 1 . . 1 Traps | -11 -10 -10 -10 -9 ------- Run | Scr Mat Min Exi Min Traps Triggered 2 | . 2 . . . Indirectly . | . . . . . Trap Hack Attempts . | . . . . . Triggered . | . . . . . Disarmed . | . . . . . Reprogrammed . | . . . . . Reused . | . . . . . Traps Extracted . | . . . . . Installed . | . . . . . Triggered . | . . . . . Machines | -11 -10 -10 -10 -9 ---------- Run | Scr Mat Min Exi Min Machines Disabled . | . . . . . Max in Single Turn . | . . . . . Machines Sabotaged . | . . . . . Garrisons Compromised . | . . . . . Overloaded Fab Kills . | . . . . . Fab Network Shutdowns . | . . . . . Hacking | -11 -10 -10 -10 -9 --------- Run | Scr Mat Min Exi Min Machines Accessed 8 | . 5 . 3 . Terminals 3 | . 3 . . . Fabricators . | . . . . . Repair Stations 1 | . 1 . . . Recycling Units 1 | . 1 . . . Scanalyzers . | . . . . . Garrison Access . | . . . . . Total Hacks 44 | . 12 . 32 . Successful 44 | . 12 . 32 . Failed . | . . . . . Catastrophic . | . . . . . Database Lockouts . | . . . . . Manual 2 | . . . 2 . Terminals 7 | . 7 . . . Fabricators . | . . . . . Repair Stations 4 | . 4 . . . Recycling Units 1 | . 1 . . . Scanalyzers . | . . . . . Garrison Access . | . . . . . Terminal Hacks 39 | . 7 . 32 . Record 37 | . 6 . 31 . Hauler Manifests 1 | . 1 . . . EX-Prototype ID Bank 1 | . . . 1 . Fabricator Hacks . | . . . . . Repair Station Hacks 4 | . 4 . . . Scan Component 2 | . 2 . . . Repair 1 | . 1 . . . Refit 1 | . 1 . . . Recycling Unit Hacks 1 | . 1 . . . Report Inventory 1 | . 1 . . . Scanalyzer . | . . . . . Garrison Access Hacks . | . . . . . Unauthorized Hacks . | . . . . . Terminals . | . . . . . Fabricators . | . . . . . Repair Stations . | . . . . . Recycling Units . | . . . . . Scanalyzers . | . . . . . Garrison Access . | . . . . . Data Cores Recovered . | . . . . . Used . | . . . . . Hacking Detections 3 | . 3 . . . Full Trace Events 1 | . 1 . . . Feedback Events . | . . . . . Feedback Blocked . | . . . . . Robot Schematics Acquired . | . . . . . Robots Built . | . . . . . Matter . | . . . . . Time . | . . . . . Total Robot Build Rating . | . . . . . Part Schematics Acquired . | . . . . . Parts Built . | . . . . . Matter . | . . . . . Time . | . . . . . Total Part Build Rating . | . . . . . Parts Repaired 1 | . 1 . . . Time 32 | . 32 . . . Parts Recycled . | . . . . . Recycled Matter . | . . . . . Retrieved Matter . | . . . . . Retrieved Components . | . . . . . Parts Scanalyzed . | . . . . . Part Schematics Acquired . | . . . . . Parts Damaged . | . . . . . Bothacking | -11 -10 -10 -10 -9 ------------ Run | Scr Mat Min Exi Min Used RIF Installer . | . . . . . Robots Hacked . | . . . . . Non-combat . | . . . . . Combat . | . . . . . Robot Hacks Applied . | . . . . . Relay Couplers Released . | . . . . . Robots Rewired . | . . . . . Allies Hacked . | . . . . . Hacks Repelled . | . . . . . Allies | -11 -10 -10 -10 -9 -------- Run | Scr Mat Min Exi Min Total Allies 3 | . . . . 3 Largest Group 3 | . . . . 3 Highest-Rated Group 40 | . . . . 40 Highest-Rated Ally 16 | . . . . 16 Total Orders . | . . . . . Ally Attacks . | . . . . . Total Damage . | . . . . . Kills . | . . . . . Allies Corrupted . | . . . . . Allies Melted . | . . . . . Intel | -11 -10 -10 -10 -9 ------- Run | Scr Mat Min Exi Min Robot Analysis Total . | . . . . . Derelict Logs Recovered 1 | . . 1 . . Drone Launches 1 | . . . 1 . Drone Recoveries . | . . . . . Exploration | -11 -10 -10 -10 -9 ------------- Run | Scr Mat Min Exi Min Turns Passed 3652 | 92 859 684 1285 732 Spaces Moved 2732 | 65 551 498 1051 567 Core 28 | 23 5 . . . Treads 313 | 42 271 . . . Legs 2390 | . 274 498 1051 567 Wheels . | . . . . . Hover 1 | . 1 . . . Flight . | . . . . . Fastest Speed 50 | 50 120 120 120 120 Average Speed 124 | 121 142 120 120 120 Slowest Speed 330 | 160 330 120 120 120 Overloaded Moves . | . . . . . Propulsion Burnouts . | . . . . . Robots Hopped . | . . . . . Cave-ins Triggered . | . . . . . Exploration Rate (%) 64 | 5 59 72 94 90 Regions Visited 4 Branch Regions 3 Pre-discovered Areas 2 | . . 1 1 . Known Exits Taken . | . . . . . Unknown Exits Taken 4 | 1 1 1 1 . Scrap Searched 4 | . . 2 . 2 Spaces Dug . | . . . . . Terrain Destroyed . | . . . . . Melee . | . . . . . Projectile . | . . . . . AOE . | . . . . . Actions | -11 -10 -10 -10 -9 --------- Run | Scr Mat Min Exi Min Total 2894 | 79 606 533 1080 596 Wait . | . . . . . Move 2728 | 64 550 497 1050 567 Hop . | . . . . . Pick Up 51 | 7 21 4 16 3 Fast Attach . | . . . . . Attach 23 | 7 10 1 4 1 Detach 6 | 1 3 . 1 1 Swap . | . . . . . Drop 19 | . 8 2 9 . Fire 43 | . 14 29 . . Melee 22 | . . . . 22 Ram . | . . . . . Kick 2 | . . . . 2 Crush . | . . . . . Escape Stasis . | . . . . . Rewire . | . . . . . Trap . | . . . . . Miscellaneous . | . . . . . Route ------- -11/Scrapyard -10/Materials (discovered 2 exits: [*Mat] / [*Min]) -10/Mines -10/Exiles -9/Mines (discovered 2 exits: [*Mat x2]) History --------- Turn | Location | Event 26 | -11/Scrapyard | Discovered new exit (range 15) 93 | -11/Scrapyard | Entered Materials 301 | -10/Materials | Build established: Mutant 717 | -10/Materials | Discovered new exit (range 16) 854 | -10/Materials | Repaired Imp. Aluminum Leg 863 | -10/Materials | Discovered new exit (range 9) 952 | -10/Materials | Entered Mines 1228 | -10/Mines | Learned location of Zion (-7) 1510 | -10/Mines | Found a hidden stash of uninstalled traps 1596 | -10/Mines | Deemed a non-threat by the Exiles lab entrance 1614 | -10/Mines | Discovered new exit (range 5) 1636 | -10/Mines | Entered Exiles 1688 | -10/Exiles | Met 8R-AWN 1713 | -10/Exiles | Met EX-HEX 1778 | -10/Exiles | Met EX-BIN 1804 | -10/Exiles | Aligned with FarCom system 1805 | -10/Exiles | Given EX-Vault access code 1933 | -10/Exiles | Opened EX-Vault 1945 | -10/Exiles | Found Prototype Device 1946 | -10/Exiles | Identified Supersonic Drone Bay 2000 | -10/Exiles | Found Prototype Device 2001 | -10/Exiles | Identified Trap Reconfigurator 2015 | -10/Exiles | Found Lightpack 2.0 2087 | -10/Exiles | Warned to stay clear of 0b10 Research branches 2174 | -10/Exiles | Met EX-DEC 2250 | -10/Exiles | Visited The Gauntlet 2304 | -10/Exiles | Build established: Hauler-Mutant 2547 | -10/Exiles | Discovered new exit (range 14) 2921 | -10/Exiles | Stole three prototypes: Lightpack 2.0, Trap Reconfigurator, Supersonic Drone Bay 2921 | -10/Exiles | Entered Mines 2921 | -9/Mines | Accompanied by 1 ally 2936 | -9/Mines | Found a damaged Exp. Sensor Array with a note attached 2941 | -9/Mines | Found Prototype Device 3007 | -9/Mines | Received a Rocket Launcher from a helpful Derelict 3474 | -9/Mines | Discovered new exit (range 9) 3492 | -9/Mines | Discovered new exit (range 30) 3570 | -9/Mines | Assisted by bots powering up and referring to "LRC-V3" 3607 | -9/Mines | Excavation squad dispatched 3607 | -9/Mines | A large section of the Mines collapsed 3653 | -9/Mines | Self-destructed Last Messages --------------- 03507_ G-47 Trooper unfolds itself. 03507_ G-34 Mercenary unfolds itself. 03509_ K-01 Serf collects debris. 03510_ Trailblazer destroyed. 03534_ K-01 Serf collects debris. 03545_ K-01 Serf cleans the Seismic Survey Station. 03570_ Trooper 2a: "Hello LRC-V3. What is your command?" 03570_ Mercenary 2a: "Hello LRC-V3. What is your command?" 03570_ Trooper 2b: "Hello LRC-V3. What is your command?" 03594_ Slammed into T-07 Excavator. 03607_ Trooper 2a crushed by falling debris. 03607_ Trooper 2a destroyed. 03607_ 4 Matter crushed. 03607_ Mercenary 2a crushed by falling debris. 03607_ Mercenary 2a destroyed. 03607_ Aluminum Leg crushed. 03607_ Trooper 2b crushed by falling debris. 03607_ Lgt. Nuclear Core crushed. 03607_ ALERT: Suspicious cave-in, suspected derelict activity in mines. Dispatching escorted excavation squad. Map ----- +----------------------------------------------------+ | | | | | | | | | | | | | | | | | | | | | | | | | | | | | | | | | | | | | | | | | | | | | ??????????????????????????????????????? | | ???????????????????????######??###????? | | ??????????????????????##### ### ##???? | | ?????????????????????## #@# * #???? | | ?????????????????????# ### % #???? | | ?????????????????????# = #???? | | ????????????????????## ##???? | | ???????????????????## ###????? | | ???????????????????# ##??????? | | ??????????????????# ##???????? | | ??????????????????# ###%#????????? | | ??????????????????## #??# #????????? | | ???????????????????### #???# #????????? | | ?????????????????????# #???# ####?????? | | # ########### ##### #?????? | | ?# ## #?????? | | ???# ########## ######## #?????? | | ????????????????###### #??????# #####?? | | ????????????????# #??????# # #?? | | ???#####?#??????# ######??????# # #?? | | #### ### ?????# #?????????###g# #?? | | # #? ?????# #????????## # ##? | | #?? ????# #????????# #? | | ##?? ##### #????????## #? | | #### #???? ## #?????????### # ##? | | ##??# #????# $## #???????????# ####?? | | ##???# #????# ## #???????????# #????? | | #????# #????# ## #???????????# #????? | +----------------------------------------------------+ Best States ------------- Heat Dissipation 25 Energy Generation 10 Energy Capacity 250 Matter Stores 400 Matter Capacity 400 Sight Range 16 Terrain Scan Density 10 Resistance: KI 20 Resistance: TH 20 Resistance: EX 20 Resistance: EM 20 Resistance: I 20 Resistance: S 20 Resistance: P 20 Evasion (%) 50 Recoil Reduction 2 Item Schematics ----------------- None Robot Schematics ------------------ None Fabricated ------------ Nothing Alien Tech Used ----------------- None Achievements -------------- Librarian Shopping List Challenges ------------ None Game ------ Seed AntimatterThrusterPurifier Manual? 0 Play Time 00:45:52 Cumulative 5.6 hours Start 2019.10.23 @ 22:21:28 End 2019.10.24 @ 19:42:41 Sessions 3 Manual Loads 0 Difficulty Adventurer Special Mode None Game No. 17 Rogue 11 Adventurer 3 Explorer 0 Win Type - Total 0 Types 0/0/0/0/0/0/0 Lore% 11 Gallery% 10 Achievement% 9 Wizard Run 0 Options --------- ASCII 0 Keyboard 0 Movement Arrows Keybinds 0 Fullscreen 2 Font 18/SmallcapsGlow Map View 76x50 Tactical HUD 1 Map Filters NONE Filters NONE Steam 1 RUN: afc3906d-2714-456d-af01-13bf8ad78b1f